[Event "Live Chess"]
[Site "Chess.com"]
[Date "2023.05.20"]
[Round "-"]
[White "Leonid_Starozhilov"]
[Black "ViktorTheCoolBoy"]
[Result "1-0"]
[WhiteElo "2642"]
[BlackElo "2497"]
[TimeControl "300"]
[EndTime "13:28:23 PDT"]
[Termination "Leonid_Starozhilov won by resignation"]

1. b3 {[%clk 0:04:58.9]} 1... c5 {[%clk 0:04:57.7]} 2. Bb2 {[%clk 0:04:58.8]}
2... Nc6 {[%clk 0:04:56]} 3. Nf3 {[%clk 0:04:58.2]} 3... d6 {[%clk 0:04:54.6]}
4. c4 {[%clk 0:04:55.5]} 4... e5 {[%clk 0:04:53.3]} 5. d3 {[%clk 0:04:52.9]}
5... Nf6 {[%clk 0:04:52.1]} 6. g3 {[%clk 0:04:52.1]} 6... Be7 {[%clk 0:04:49.6]}
7. Bg2 {[%clk 0:04:51.7]} 7... O-O {[%clk 0:04:48.2]} 8. O-O {[%clk 0:04:51.3]}
8... h6 {[%clk 0:04:47.6]} 9. Nc3 {[%clk 0:04:50.6]} 9... Be6 {[%clk 0:04:45.6]}
10. e3 {[%clk 0:04:50.1]} 10... a6 {[%clk 0:04:44.3]} 11. d4 {[%clk 0:04:49.5]}
11... exd4 {[%clk 0:04:34.1]} 12. exd4 {[%clk 0:04:48.6]} 12... Bg4 {[%clk
0:04:33.7]} 13. dxc5 {[%clk 0:04:45.1]} 13... dxc5 {[%clk 0:04:32.6]} 14. h3
{[%clk 0:04:44.8]} 14... Qxd1 {[%clk 0:04:29.3]} 15. Raxd1 {[%clk 0:04:43.2]}
15... Bxf3 {[%clk 0:04:28.8]} 16. Bxf3 {[%clk 0:04:42.3]} 16... Nd4 {[%clk
0:04:28.3]} 17. Bxb7 {[%clk 0:04:39.7]} 17... Ra7 {[%clk 0:04:27.9]} 18. Bg2
{[%clk 0:04:37.7]} 18... a5 {[%clk 0:04:27.2]} 19. Nd5 {[%clk 0:04:35.8]} 19...
Nxd5 {[%clk 0:04:25.7]} 20. Bxd5 {[%clk 0:04:35.5]} 20... Bf6 {[%clk 0:04:24.9]}
21. Rfe1 {[%clk 0:04:22.1]} 21... Nc2 {[%clk 0:04:15.4]} 22. Re2 {[%clk
0:04:04.8]} 22... Bxb2 {[%clk 0:04:13.3]} 23. Rxc2 {[%clk 0:04:03.9]} 23... Bd4
{[%clk 0:04:12.7]} 24. Kg2 {[%clk 0:04:00]} 24... Re7 {[%clk 0:04:11.1]} 25.
Rcd2 {[%clk 0:03:53.9]} 25... Rfe8 {[%clk 0:04:08.8]} 26. Bc6 {[%clk 0:03:51.7]}
26... Rc8 {[%clk 0:04:05.6]} 27. Bb5 {[%clk 0:03:46.9]} 27... Kf8 {[%clk
0:04:02.9]} 28. a3 {[%clk 0:03:44.7]} 28... g5 {[%clk 0:03:26.6]} 29. b4 {[%clk
0:03:32.3]} 29... axb4 {[%clk 0:03:25.3]} 30. axb4 {[%clk 0:03:31.6]} 30... Kg7
{[%clk 0:03:24.8]} 31. Rxd4 {[%clk 0:03:29.5]} 31... cxd4 {[%clk 0:03:23.3]} 32.
Rxd4 {[%clk 0:03:29.1]} 32... Re2 {[%clk 0:03:22.4]} 33. c5 {[%clk 0:03:22.2]}
33... Rb2 {[%clk 0:03:21.4]} 34. Bd7 {[%clk 0:03:21.4]} 34... Rc7 {[%clk
0:03:07.8]} 35. c6 {[%clk 0:03:20.3]} 35... Kf6 {[%clk 0:03:04.1]} 36. Kf3
{[%clk 0:03:10.2]} 36... Ke5 {[%clk 0:03:02.9]} 37. Re4+ {[%clk 0:02:57]} 37...
Kd5 {[%clk 0:02:57.5]} 38. Re8 {[%clk 0:02:46.9]} 38... Rxb4 {[%clk 0:02:51.7]}
39. Rh8 {[%clk 0:02:45.8]} 39... Rxc6 {[%clk 0:02:43.9]} 40. Bxc6+ {[%clk
0:02:43.4]} 40... Kxc6 {[%clk 0:02:43.8]} 41. Rxh6+ {[%clk 0:02:42.4]} 41... Kd7
{[%clk 0:02:42.8]} 42. Rh5 {[%clk 0:02:35.3]} 42... f6 {[%clk 0:02:41.1]} 43. h4
{[%clk 0:02:29.4]} 43... gxh4 {[%clk 0:02:39.7]} 44. Rxh4 {[%clk 0:02:24.2]}
44... Rb3+ {[%clk 0:02:38.4]} 45. Kg4 {[%clk 0:02:22.4]} 45... Ke6 {[%clk
0:02:37.5]} 46. Rh8 {[%clk 0:02:18.8]} 46... Kf7 {[%clk 0:02:35.2]} 47. f4
{[%clk 0:02:14.8]} 47... Kg7 {[%clk 0:02:31.5]} 48. Rc8 {[%clk 0:02:13.6]} 48...
Rb5 {[%clk 0:02:31]} 49. Rc7+ {[%clk 0:02:11.2]} 49... Kg6 {[%clk 0:02:29.2]}
50. Kh4 {[%clk 0:02:09]} 50... Rb1 {[%clk 0:02:25.9]} 51. g4 {[%clk 0:02:06.4]}
51... Rh1+ {[%clk 0:02:24.8]} 52. Kg3 {[%clk 0:02:05.6]} 52... Rg1+ {[%clk
0:02:24.7]} 53. Kh3 {[%clk 0:02:03.3]} 53... Rh1+ {[%clk 0:02:23.6]} 54. Kg2
{[%clk 0:02:02.4]} 54... Ra1 {[%clk 0:02:23.1]} 55. Rc6 {[%clk 0:01:57.7]} 55...
Kg7 {[%clk 0:02:20]} 56. Kf3 {[%clk 0:01:53.3]} 56... Ra3+ {[%clk 0:02:17.1]}
57. Ke4 {[%clk 0:01:52.2]} 57... Ra4+ {[%clk 0:02:16.2]} 58. Kf5 {[%clk
0:01:51.5]} 58... Ra5+ {[%clk 0:02:15.3]} 59. Ke6 {[%clk 0:01:51]} 59... Ra4
{[%clk 0:02:14]} 60. Rc7+ {[%clk 0:01:29.7]} 60... Kg8 {[%clk 0:02:06.3]} 61.
Kf5 {[%clk 0:01:26.5]} 61... Rb4 {[%clk 0:02:04.5]} 62. Kg6 {[%clk 0:01:23.5]}
62... Kf8 {[%clk 0:01:56.8]} 63. Rf7+ {[%clk 0:01:21.7]} 63... Kg8 {[%clk
0:01:55.7]} 64. Rxf6 {[%clk 0:01:21.6]} 64... Rb7 {[%clk 0:01:53.8]} 65. Ra6
{[%clk 0:01:17.5]} 65... Rg7+ {[%clk 0:01:52.3]} 66. Kh5 {[%clk 0:01:16.5]}
66... Rh7+ {[%clk 0:01:51.1]} 67. Rh6 {[%clk 0:01:13.3]} 67... Rb7 {[%clk
0:01:50.6]} 68. f5 {[%clk 0:01:12.3]} 68... Kg7 {[%clk 0:01:48.6]} 69. g5 {[%clk
0:01:09.9]} 69... Rb1 {[%clk 0:01:46.8]} 70. f6+ {[%clk 0:01:08.4]} 70... Kf7
{[%clk 0:01:45.9]} 71. Rh7+ {[%clk 0:01:07.3]} 71... Ke6 {[%clk 0:01:45.4]} 72.
Re7+ {[%clk 0:01:06.3]} 72... Kf5 {[%clk 0:01:44.8]} 73. Kh6 {[%clk 0:01:01.8]}
73... Rg1 {[%clk 0:01:42.3]} 74. f7 {[%clk 0:00:56.7]} 74... Rh1+ {[%clk
0:01:40.9]} 75. Kg7 {[%clk 0:00:55.8]} 75... Kxg5 {[%clk 0:01:40.5]} 76. f8=Q
{[%clk 0:00:54.3]} 1-0

[Event "Live Chess"]
[Site "Chess.com"]
[Date "2023.05.20"]
[Round "-"]
[White "KeithArkell"]
[Black "chessfiction"]
[Result "1-0"]
[WhiteElo "2613"]
[BlackElo "2425"]
[TimeControl "300"]
[EndTime "13:28:31 PDT"]
[Termination "KeithArkell won by resignation"]

1. d4 {[%clk 0:04:58.5]} 1... Nf6 {[%clk 0:04:58.1]} 2. Nf3 {[%clk 0:04:57.7]}
2... d5 {[%clk 0:04:56.9]} 3. c4 {[%clk 0:04:57]} 3... c6 {[%clk 0:04:56.1]} 4.
Nc3 {[%clk 0:04:54.9]} 4... g6 {[%clk 0:04:53.6]} 5. Bg5 {[%clk 0:04:52.3]} 5...
Bg7 {[%clk 0:04:52.6]} 6. Bxf6 {[%clk 0:04:49.4]} 6... Bxf6 {[%clk 0:04:51.4]}
7. e3 {[%clk 0:04:48.7]} 7... O-O {[%clk 0:04:49.8]} 8. Qb3 {[%clk 0:04:47.9]}
8... dxc4 {[%clk 0:04:47.8]} 9. Bxc4 {[%clk 0:04:47]} 9... b5 {[%clk 0:04:47]}
10. Be2 {[%clk 0:04:45]} 10... a5 {[%clk 0:04:45.9]} 11. Ne4 {[%clk 0:04:43.4]}
11... Bg7 {[%clk 0:04:43.9]} 12. Rc1 {[%clk 0:04:42.3]} 12... Be6 {[%clk
0:04:42.1]} 13. Qc2 {[%clk 0:04:39.8]} 13... Na6 {[%clk 0:04:37.3]} 14. b3
{[%clk 0:04:38.1]} 14... a4 {[%clk 0:04:35.9]} 15. O-O {[%clk 0:04:33.7]} 15...
Nb4 {[%clk 0:04:31.2]} 16. Qb1 {[%clk 0:04:32.5]} 16... Bf5 {[%clk 0:04:18.8]}
17. a3 {[%clk 0:04:14.1]} 17... Nd5 {[%clk 0:04:13.5]} 18. b4 {[%clk 0:04:11]}
18... e5 {[%clk 0:04:02.8]} 19. Nxe5 {[%clk 0:04:08.4]} 19... Bxe5 {[%clk
0:04:01.2]} 20. dxe5 {[%clk 0:04:07.9]} 20... Qh4 {[%clk 0:03:59.1]} 21. Bf3
{[%clk 0:04:05.9]} 21... Rfe8 {[%clk 0:03:51.9]} 22. g3 {[%clk 0:04:03.8]} 22...
Qh3 {[%clk 0:03:47.9]} 23. Qb2 {[%clk 0:03:55.8]} 23... Bxe4 {[%clk 0:03:35]}
24. Bxe4 {[%clk 0:03:54.7]} 24... Qe6 {[%clk 0:03:34.6]} 25. Rfd1 {[%clk
0:03:42.2]} 25... Qxe5 {[%clk 0:03:32.3]} 26. Qxe5 {[%clk 0:03:39.1]} 26... Rxe5
{[%clk 0:03:32.2]} 27. Bxd5 {[%clk 0:03:38]} 27... Rxd5 {[%clk 0:03:23.4]} 28.
Rxd5 {[%clk 0:03:36.5]} 28... cxd5 {[%clk 0:03:23.3]} 29. Rc5 {[%clk 0:03:35.3]}
29... Rd8 {[%clk 0:03:23.2]} 30. Rxb5 {[%clk 0:03:34.4]} 30... d4 {[%clk
0:03:23.1]} 31. exd4 {[%clk 0:03:33.8]} 31... Rxd4 {[%clk 0:03:21.2]} 32. Ra5
{[%clk 0:03:33.2]} 32... f5 {[%clk 0:03:15.8]} 33. Rxa4 {[%clk 0:03:31.9]} 33...
f4 {[%clk 0:03:15.7]} 34. gxf4 {[%clk 0:03:30.5]} 34... h5 {[%clk 0:03:12.9]}
35. Ra7 {[%clk 0:03:26.9]} 35... h4 {[%clk 0:03:12.1]} 36. Kg2 {[%clk
0:03:25.1]} 36... Rd3 {[%clk 0:03:11.8]} 37. h3 {[%clk 0:03:23.3]} 37... Kf8
{[%clk 0:03:07.8]} 38. b5 {[%clk 0:03:22.7]} 38... Rb3 {[%clk 0:03:06.4]} 39. a4
{[%clk 0:03:22.1]} 39... Rb4 {[%clk 0:03:05.8]} 40. Kf3 {[%clk 0:03:20.2]} 1-0

[Event "Live Chess"]
[Site "Chess.com"]
[Date "2023.05.20"]
[Round "-"]
[White "Missedidea"]
[Black "Singapourfeuj"]
[Result "0-1"]
[WhiteElo "1808"]
[BlackElo "2240"]
[TimeControl "300"]
[EndTime "13:28:34 PDT"]
[Termination "Singapourfeuj won on time"]

1. d4 {[%clk 0:04:57.5]} 1... Nf6 {[%clk 0:04:59]} 2. c4 {[%clk 0:04:55.7]} 2...
g6 {[%clk 0:04:58.3]} 3. Nc3 {[%clk 0:04:52.3]} 3... Bg7 {[%clk 0:04:57.4]} 4.
e4 {[%clk 0:04:50.6]} 4... d6 {[%clk 0:04:55.4]} 5. Nf3 {[%clk 0:04:49.3]} 5...
O-O {[%clk 0:04:53.8]} 6. Be2 {[%clk 0:04:48.3]} 6... e5 {[%clk 0:04:52.5]} 7.
O-O {[%clk 0:04:44.5]} 7... Nc6 {[%clk 0:04:49.9]} 8. d5 {[%clk 0:04:42.6]} 8...
Ne7 {[%clk 0:04:48.6]} 9. Ne1 {[%clk 0:04:41.2]} 9... Nd7 {[%clk 0:04:47.4]} 10.
Nd3 {[%clk 0:04:38.9]} 10... f5 {[%clk 0:04:46.2]} 11. b4 {[%clk 0:04:35.4]}
11... Nf6 {[%clk 0:04:44.5]} 12. f3 {[%clk 0:04:33.5]} 12... Rf7 {[%clk
0:04:43.7]} 13. c5 {[%clk 0:04:21.8]} 13... Bf8 {[%clk 0:04:42]} 14. Be3 {[%clk
0:04:05.9]} 14... f4 {[%clk 0:04:41]} 15. Bf2 {[%clk 0:04:03.1]} 15... g5 {[%clk
0:04:40.3]} 16. Rc1 {[%clk 0:03:43.5]} 16... h5 {[%clk 0:04:38.4]} 17. cxd6
{[%clk 0:03:35.7]} 17... cxd6 {[%clk 0:04:37.3]} 18. Nb5 {[%clk 0:03:33.6]}
18... Ne8 {[%clk 0:04:35.6]} 19. Qc2 {[%clk 0:03:07]} 19... Ng6 {[%clk
0:04:32.8]} 20. Nxa7 {[%clk 0:02:56]} 20... Bd7 {[%clk 0:04:31.7]} 21. b5 {[%clk
0:02:39.7]} 21... g4 {[%clk 0:04:30.4]} 22. b6 {[%clk 0:02:07.8]} 22... g3
{[%clk 0:04:23.3]} 23. hxg3 {[%clk 0:02:02.8]} 23... fxg3 {[%clk 0:04:21.4]} 24.
Bxg3 {[%clk 0:01:39.8]} 24... Qxb6+ {[%clk 0:04:19.5]} 25. Bf2 {[%clk
0:01:37.1]} 25... Qd8 {[%clk 0:04:17.5]} 26. a4 {[%clk 0:01:18.8]} 26... Rg7
{[%clk 0:04:12.6]} 27. Nb5 {[%clk 0:01:09.6]} 27... Qg5 {[%clk 0:04:10]} 28. Ra1
{[%clk 0:00:19.1]} 28... h4 {[%clk 0:04:00]} 29. Qc1 {[%clk 0:00:11.9]} 29...
Nf4 {[%clk 0:03:57.7]} 30. Nxf4 {[%clk 0:00:06.2]} 30... exf4 {[%clk 0:03:52.8]}
31. g4 {[%clk 0:00:01.3]} 31... hxg3 {[%clk 0:03:51.3]} 0-1

[Event "Live Chess"]
[Site "Chess.com"]
[Date "2023.05.20"]
[Round "-"]
[White "xx_blindpuffin_xx"]
[Black "Olisingapore"]
[Result "1-0"]
[WhiteElo "2194"]
[BlackElo "1878"]
[TimeControl "300"]
[EndTime "13:28:42 PDT"]
[Termination "xx_blindpuffin_xx won by checkmate"]

1. e4 {[%clk 0:04:59.3]} 1... c5 {[%clk 0:04:58.9]} 2. Nf3 {[%clk 0:04:58.6]}
2... d6 {[%clk 0:04:58.4]} 3. g3 {[%clk 0:04:57.7]} 3... Nc6 {[%clk 0:04:56.9]}
4. Bg2 {[%clk 0:04:57]} 4... g6 {[%clk 0:04:55.3]} 5. O-O {[%clk 0:04:56.6]}
5... Bg7 {[%clk 0:04:54.3]} 6. c3 {[%clk 0:04:56.3]} 6... e6 {[%clk 0:04:47.3]}
7. Re1 {[%clk 0:04:50.7]} 7... Nge7 {[%clk 0:04:46.5]} 8. d4 {[%clk 0:04:46.8]}
8... cxd4 {[%clk 0:04:43.3]} 9. cxd4 {[%clk 0:04:46.7]} 9... O-O {[%clk
0:04:29]} 10. Nc3 {[%clk 0:04:45.1]} 10... Qb6 {[%clk 0:04:17.6]} 11. Ne2 {[%clk
0:04:35.1]} 11... Bd7 {[%clk 0:04:11.3]} 12. b3 {[%clk 0:04:31.7]} 12... Rac8
{[%clk 0:04:06.8]} 13. Be3 {[%clk 0:04:30.3]} 13... Nb4 {[%clk 0:04:05.7]} 14.
Rc1 {[%clk 0:04:02.5]} 14... Rxc1 {[%clk 0:03:42.5]} 15. Nxc1 {[%clk 0:04:02.4]}
15... Rc8 {[%clk 0:03:39]} 16. Re2 {[%clk 0:03:49.8]} 16... Qa6 {[%clk
0:03:36.4]} 17. Bf1 {[%clk 0:03:39.1]} 17... Bb5 {[%clk 0:03:32.4]} 18. Rb2
{[%clk 0:03:30.3]} 18... Bxf1 {[%clk 0:03:29.5]} 19. Qxf1 {[%clk 0:03:30.2]}
19... d5 {[%clk 0:03:21.2]} 20. Qxa6 {[%clk 0:03:20.6]} 20... bxa6 {[%clk
0:03:21.1]} 21. e5 {[%clk 0:03:06.4]} 21... Nf5 {[%clk 0:03:17.5]} 22. Bd2
{[%clk 0:03:00.8]} 22... Bh6 {[%clk 0:03:07.6]} 23. Bxb4 {[%clk 0:02:48.4]}
23... Bxc1 {[%clk 0:02:53.6]} 24. Rb1 {[%clk 0:02:44.2]} 24... Bh6 {[%clk
0:02:51.6]} 25. Bc5 {[%clk 0:02:42.4]} 25... Bf8 {[%clk 0:02:47.5]} 26. b4
{[%clk 0:02:39.5]} 26... Rb8 {[%clk 0:02:41]} 27. g4 {[%clk 0:02:28.9]} 27...
Bxc5 {[%clk 0:02:28.2]} 28. dxc5 {[%clk 0:02:28.8]} 28... Ne7 {[%clk 0:02:25.8]}
29. Nd4 {[%clk 0:02:27.5]} 29... a5 {[%clk 0:02:23.1]} 30. b5 {[%clk 0:02:25.2]}
30... Rc8 {[%clk 0:02:16.2]} 31. c6 {[%clk 0:02:23.5]} 31... Kf8 {[%clk
0:02:06.8]} 32. a4 {[%clk 0:02:20.5]} 32... Ke8 {[%clk 0:02:04.8]} 33. Nb3
{[%clk 0:02:19.4]} 33... Rb8 {[%clk 0:01:58.4]} 34. Nxa5 {[%clk 0:02:18.2]}
34... Rb6 {[%clk 0:01:56.7]} 35. Nb7 {[%clk 0:02:16]} 35... Nxc6 {[%clk
0:01:54.4]} 36. Nd6+ {[%clk 0:02:04.6]} 36... Kd7 {[%clk 0:01:47.1]} 37. bxc6+
{[%clk 0:02:02.4]} 37... Kxc6 {[%clk 0:01:44.7]} 38. Rc1+ {[%clk 0:01:59.8]}
38... Kd7 {[%clk 0:01:43]} 39. Nxf7 {[%clk 0:01:51.8]} 39... Rb4 {[%clk
0:01:36]} 40. Ng5 {[%clk 0:01:48]} 40... h6 {[%clk 0:01:34.9]} 41. Nh7 {[%clk
0:01:46.9]} 41... Rxa4 {[%clk 0:01:29.9]} 42. Nf6+ {[%clk 0:01:45.2]} 42... Ke7
{[%clk 0:01:27.1]} 43. Rc7+ {[%clk 0:01:43.3]} 43... Kd8 {[%clk 0:01:25.2]} 44.
Rg7 {[%clk 0:01:36.9]} 44... g5 {[%clk 0:01:23.1]} 45. Rh7 {[%clk 0:01:33.6]}
45... d4 {[%clk 0:01:04.5]} 46. Rxh6 {[%clk 0:01:29.2]} 46... d3 {[%clk
0:01:03.2]} 47. Rh7 {[%clk 0:01:28.1]} 47... Rd4 {[%clk 0:00:59.4]} 48. Rb7
{[%clk 0:00:40.5]} 48... d2 {[%clk 0:00:55.2]} 49. Rb1 {[%clk 0:00:39.6]} 49...
d1=Q+ {[%clk 0:00:50.8]} 50. Rxd1 {[%clk 0:00:38.8]} 50... Rxd1+ {[%clk
0:00:50.5]} 51. Kg2 {[%clk 0:00:38]} 51... a5 {[%clk 0:00:45.3]} 52. Ne4 {[%clk
0:00:36.3]} 52... Rd4 {[%clk 0:00:33.5]} 53. Kf3 {[%clk 0:00:32.9]} 53... a4
{[%clk 0:00:28.1]} 54. Nxg5 {[%clk 0:00:32.1]} 54... a3 {[%clk 0:00:26.8]} 55.
Nxe6+ {[%clk 0:00:31.2]} 55... Ke7 {[%clk 0:00:23.9]} 56. Nxd4 {[%clk
0:00:31.1]} 56... a2 {[%clk 0:00:19.7]} 57. Nc2 {[%clk 0:00:30.3]} 57... Ke6
{[%clk 0:00:19.3]} 58. Ke4 {[%clk 0:00:29.6]} 58... Kd7 {[%clk 0:00:17.8]} 59.
f4 {[%clk 0:00:28.2]} 59... Ke6 {[%clk 0:00:17.4]} 60. f5+ {[%clk 0:00:27.7]}
60... Ke7 {[%clk 0:00:16.9]} 61. g5 {[%clk 0:00:27.2]} 61... Kf7 {[%clk
0:00:16.4]} 62. h4 {[%clk 0:00:25.9]} 62... Ke7 {[%clk 0:00:15.9]} 63. h5 {[%clk
0:00:25.8]} 63... Kf7 {[%clk 0:00:13.6]} 64. f6 {[%clk 0:00:25.7]} 64... Ke6
{[%clk 0:00:12.9]} 65. g6 {[%clk 0:00:25.2]} 65... Kd7 {[%clk 0:00:12]} 66. Kf5
{[%clk 0:00:24.4]} 66... Ke8 {[%clk 0:00:10.4]} 67. g7 {[%clk 0:00:24.3]} 67...
Kf7 {[%clk 0:00:09.7]} 68. e6+ {[%clk 0:00:23.4]} 68... Kg8 {[%clk 0:00:08.9]}
69. Kg6 {[%clk 0:00:22.4]} 69... a1=Q {[%clk 0:00:06.7]} 70. f7# {[%clk
0:00:22]} 1-0

[Event "Live Chess"]
[Site "Chess.com"]
[Date "2023.05.20"]
[Round "-"]
[White "KGreenGator"]
[Black "NatashaRegan"]
[Result "1-0"]
[WhiteElo "1790"]
[BlackElo "1783"]
[TimeControl "300"]
[EndTime "13:28:42 PDT"]
[Termination "KGreenGator won by checkmate"]

1. c4 {[%clk 0:04:58.6]} 1... e5 {[%clk 0:04:56.6]} 2. Nc3 {[%clk 0:04:57.3]}
2... Nc6 {[%clk 0:04:53.7]} 3. e3 {[%clk 0:04:56.3]} 3... f5 {[%clk 0:04:52.8]}
4. d4 {[%clk 0:04:55.5]} 4... e4 {[%clk 0:04:42.4]} 5. d5 {[%clk 0:04:53.6]}
5... Ne5 {[%clk 0:04:40.1]} 6. Qd4 {[%clk 0:04:47.3]} 6... d6 {[%clk 0:04:34.7]}
7. h3 {[%clk 0:04:41.2]} 7... Nf6 {[%clk 0:04:32.4]} 8. Qd2 {[%clk 0:04:36.6]}
8... Be7 {[%clk 0:04:22.1]} 9. b3 {[%clk 0:04:34.7]} 9... O-O {[%clk 0:04:19.8]}
10. Bb2 {[%clk 0:04:32.8]} 10... c6 {[%clk 0:04:06.4]} 11. Be2 {[%clk
0:04:29.1]} 11... cxd5 {[%clk 0:03:41.7]} 12. Nxd5 {[%clk 0:04:26.7]} 12... Nxd5
{[%clk 0:03:39.1]} 13. Qxd5+ {[%clk 0:04:25.4]} 13... Be6 {[%clk 0:03:31.6]} 14.
Qxe6+ {[%clk 0:04:22.8]} 14... Kh8 {[%clk 0:03:26.4]} 15. Bxe5 {[%clk
0:04:12.7]} 15... dxe5 {[%clk 0:03:17.6]} 16. Qd5 {[%clk 0:04:07.2]} 16... Bb4+
{[%clk 0:03:13.8]} 17. Kf1 {[%clk 0:04:04.7]} 17... Qf6 {[%clk 0:03:07.5]} 18.
Qb5 {[%clk 0:03:56.7]} 18... Bc3 {[%clk 0:03:04.5]} 19. Rc1 {[%clk 0:03:52.8]}
19... Bb2 {[%clk 0:02:51.1]} 20. Rc2 {[%clk 0:03:50.3]} 20... Ba3 {[%clk
0:02:45]} 21. b4 {[%clk 0:03:35.8]} 21... b6 {[%clk 0:02:37.6]} 22. Qa4 {[%clk
0:03:33.1]} 22... f4 {[%clk 0:02:20.1]} 23. Qxa3 {[%clk 0:03:17.7]} 23... f3
{[%clk 0:02:17.8]} 24. gxf3 {[%clk 0:03:10.6]} 24... exf3 {[%clk 0:02:16.3]} 25.
Bxf3 {[%clk 0:03:08.7]} 25... Rad8 {[%clk 0:02:09.9]} 26. Bg4 {[%clk 0:02:51.5]}
26... e4 {[%clk 0:02:04.2]} 27. Rh2 {[%clk 0:02:40.3]} 27... Rd3 {[%clk
0:01:57.5]} 28. Qc1 {[%clk 0:02:34.4]} 28... Qd6 {[%clk 0:01:46.9]} 29. Be2
{[%clk 0:02:27.4]} 29... Qxh2 {[%clk 0:01:40.4]} 30. Bxd3 {[%clk 0:02:21.6]}
30... exd3 {[%clk 0:01:38.5]} 31. Rd2 {[%clk 0:02:20.7]} 31... Qd6 {[%clk
0:01:25.4]} 32. Qc3 {[%clk 0:02:13.8]} 32... Rd8 {[%clk 0:01:14.9]} 33. a3
{[%clk 0:02:08.6]} 33... h6 {[%clk 0:01:08.5]} 34. Nf3 {[%clk 0:02:02.7]} 34...
Qg6 {[%clk 0:00:52.6]} 35. Qe5 {[%clk 0:01:53.1]} 35... Rf8 {[%clk 0:00:44]} 36.
Nh4 {[%clk 0:01:32.7]} 36... Qf7 {[%clk 0:00:33.4]} 37. Qg3 {[%clk 0:01:17]}
37... g5 {[%clk 0:00:24.9]} 38. Qe5+ {[%clk 0:01:05.3]} 38... Kh7 {[%clk
0:00:22.6]} 39. Qe4+ {[%clk 0:00:53.3]} 39... Kg7 {[%clk 0:00:19.2]} 40. Ng2
{[%clk 0:00:50.7]} 40... Re8 {[%clk 0:00:14.4]} 41. Qxd3 {[%clk 0:00:48.4]}
41... Qf3 {[%clk 0:00:12.2]} 42. Qd7+ {[%clk 0:00:42]} 42... Kf8 {[%clk
0:00:09.2]} 43. Qd6+ {[%clk 0:00:38.7]} 43... Kf7 {[%clk 0:00:07.3]} 44. Qg3
{[%clk 0:00:34.5]} 44... Qe4 {[%clk 0:00:04.7]} 45. Rd7+ {[%clk 0:00:27.9]}
45... Kf6 {[%clk 0:00:03]} 46. Qd6+ {[%clk 0:00:25.8]} 46... Kf5 {[%clk
0:00:01.3]} 47. Rf7# {[%clk 0:00:24.4]} 1-0

[Event "Live Chess"]
[Site "Chess.com"]
[Date "2023.05.20"]
[Round "-"]
[White "Tema1107"]
[Black "Hacker_2009"]
[Result "0-1"]
[WhiteElo "1971"]
[BlackElo "1918"]
[TimeControl "300"]
[EndTime "13:28:56 PDT"]
[Termination "Hacker_2009 won on time"]

1. c4 {[%clk 0:04:58.5]} 1... Nf6 {[%clk 0:04:58.6]} 2. Nc3 {[%clk 0:04:57.9]}
2... e6 {[%clk 0:04:57.9]} 3. e4 {[%clk 0:04:56.1]} 3... d6 {[%clk 0:04:52.3]}
4. d4 {[%clk 0:04:54.6]} 4... Be7 {[%clk 0:04:50.7]} 5. f3 {[%clk 0:04:54.1]}
5... O-O {[%clk 0:04:49.7]} 6. Be3 {[%clk 0:04:53.4]} 6... b6 {[%clk 0:04:49.4]}
7. Nge2 {[%clk 0:04:52.6]} 7... Bb7 {[%clk 0:04:49]} 8. Qd2 {[%clk 0:04:52]}
8... c5 {[%clk 0:04:45.1]} 9. g4 {[%clk 0:04:48.1]} 9... cxd4 {[%clk 0:04:43.8]}
10. Nxd4 {[%clk 0:04:48]} 10... Nc6 {[%clk 0:04:42.7]} 11. Be2 {[%clk
0:04:44.1]} 11... Nxd4 {[%clk 0:04:41.5]} 12. Bxd4 {[%clk 0:04:43.6]} 12... Rc8
{[%clk 0:04:40.8]} 13. b3 {[%clk 0:04:41.9]} 13... d5 {[%clk 0:04:39]} 14. cxd5
{[%clk 0:04:34.7]} 14... exd5 {[%clk 0:04:37]} 15. e5 {[%clk 0:04:34.2]} 15...
Ne8 {[%clk 0:04:29.1]} 16. O-O {[%clk 0:04:31.4]} 16... Nc7 {[%clk 0:04:28]} 17.
Rac1 {[%clk 0:04:18.6]} 17... Ne6 {[%clk 0:04:23.9]} 18. Nb5 {[%clk 0:04:16.2]}
18... a6 {[%clk 0:04:20.3]} 19. Rxc8 {[%clk 0:03:55.8]} 19... Bxc8 {[%clk
0:04:17.4]} 20. Nd6 {[%clk 0:03:49.5]} 20... Bxd6 {[%clk 0:04:16.1]} 21. exd6
{[%clk 0:03:49.4]} 21... Qxd6 {[%clk 0:04:15.3]} 22. Bf2 {[%clk 0:03:45.3]}
22... Bb7 {[%clk 0:04:08]} 23. Rc1 {[%clk 0:03:39.2]} 23... Qd7 {[%clk
0:04:03.9]} 24. Bxb6 {[%clk 0:03:36.3]} 24... Rc8 {[%clk 0:04:02.2]} 25. Rxc8+
{[%clk 0:03:34]} 25... Qxc8 {[%clk 0:03:59.9]} 26. Be3 {[%clk 0:03:27.5]} 26...
h6 {[%clk 0:03:58.8]} 27. Kf2 {[%clk 0:03:21]} 27... Qc7 {[%clk 0:03:57.4]} 28.
Kg2 {[%clk 0:03:14.4]} 28... Qd6 {[%clk 0:03:50.5]} 29. Bd4 {[%clk 0:02:41.6]}
29... Nf4+ {[%clk 0:03:44.7]} 30. Kg1 {[%clk 0:02:36.1]} 30... Qe6 {[%clk
0:03:26.4]} 31. Bf1 {[%clk 0:02:31.4]} 31... g5 {[%clk 0:03:22.7]} 32. Qa5
{[%clk 0:02:23.9]} 32... Qe7 {[%clk 0:02:52.8]} 33. Qb6 {[%clk 0:02:14.2]} 33...
Ng6 {[%clk 0:02:48.3]} 34. Qf6 {[%clk 0:01:49.3]} 34... Qxf6 {[%clk 0:02:44.8]}
35. Bxf6 {[%clk 0:01:49.2]} 35... Nh4 {[%clk 0:02:39.2]} 36. Kf2 {[%clk
0:01:48.1]} 36... d4 {[%clk 0:02:37.8]} 37. f4 {[%clk 0:01:30.2]} 37... Ng6
{[%clk 0:02:32.9]} 38. fxg5 {[%clk 0:01:27.5]} 38... hxg5 {[%clk 0:02:31.5]} 39.
Bxd4 {[%clk 0:01:25.5]} 39... Nf4 {[%clk 0:02:25.5]} 40. Be3 {[%clk 0:01:13.3]}
40... Ne6 {[%clk 0:02:10.2]} 41. Bc4 {[%clk 0:01:10.9]} 41... Bc8 {[%clk
0:02:06.5]} 42. h3 {[%clk 0:01:07.8]} 42... Kg7 {[%clk 0:01:34.3]} 43. b4 {[%clk
0:00:47.2]} 43... Kf6 {[%clk 0:01:29]} 44. a4 {[%clk 0:00:43.8]} 44... Ke5
{[%clk 0:01:21.7]} 45. a5 {[%clk 0:00:33.9]} 45... f6 {[%clk 0:01:17.3]} 46. b5
{[%clk 0:00:26]} 46... axb5 {[%clk 0:01:10.1]} 47. Bxb5 {[%clk 0:00:25.9]} 47...
Nc7 {[%clk 0:01:07.8]} 48. Bc6 {[%clk 0:00:24.8]} 48... Ba6 {[%clk 0:01:03.5]}
49. Kf3 {[%clk 0:00:21.6]} 49... Ne6 {[%clk 0:00:57.5]} 50. Ba7 {[%clk
0:00:18.4]} 50... Nf8 {[%clk 0:00:44.7]} 51. Bb8+ {[%clk 0:00:14.6]} 51... Kd4
{[%clk 0:00:43.6]} 52. Bd6 {[%clk 0:00:12.6]} 52... Ng6 {[%clk 0:00:39.5]} 53.
Kg3 {[%clk 0:00:10]} 53... Kc4 {[%clk 0:00:35.6]} 54. Be8 {[%clk 0:00:08.7]}
54... Kd5 {[%clk 0:00:32.4]} 55. Bxg6 {[%clk 0:00:05.7]} 55... Kxd6 {[%clk
0:00:31.6]} 56. Kf3 {[%clk 0:00:05.1]} 56... Ke5 {[%clk 0:00:30.6]} 57. Ke3
{[%clk 0:00:04.6]} 57... Bf1 {[%clk 0:00:28.2]} 58. Bd3 {[%clk 0:00:04]} 58...
Bxh3 {[%clk 0:00:22.9]} 59. a6 {[%clk 0:00:02.7]} 59... Bg2 {[%clk 0:00:22.8]}
60. a7 {[%clk 0:00:01.2]} 60... Ba8 {[%clk 0:00:21.7]} 61. Be2 {[%clk
0:00:00.9]} 61... f5 {[%clk 0:00:19]} 62. Bf3 {[%clk 0:00:00.8]} 62... f4+
{[%clk 0:00:17.7]} 63. Kf2 {[%clk 0:00:00.3]} 63... Bxf3 {[%clk 0:00:16.6]} 64.
Kxf3 {[%clk 0:00:00.2]} 64... Kd4 {[%clk 0:00:15.7]} 65. a8=Q {[%clk 0:00:00.1]}
65... Kd3 {[%clk 0:00:15.3]} 0-1